bitfinex/quotes_ETHUSD_20250216
["timestamp","ask_amount","ask_price","bid_price","bid_amount"]
[1739735828074,0.04605107,2685.1,2684.8,3.72458]
[1739735828418,0.7908,2685.5,2685.0,3.72439]
[1739735828690,0.7908,2685.5,2685.0,0.45584317]
[1739735828984,4.51461,2685.5,2685.0,0.45584317]
[1739735829490,0.7908,2685.5,2685.0,0.45584317]
[1739735829663,3.72338,2685.8,2685.2,4.51532]
[1739735829865,3.72338,2685.8,2685.3,0.451532]
[1739735830283,3.72343,2685.7,2685.3,0.451532]
[1739735830593,3.72338,2685.8,2685.3,0.451532]
[1739735830791,3.72343,2685.7,2685.3,0.451532]
[1739735831170,7.44693,2685.7,2685.3,0.451532]
[1739735831368,3.72357,2685.6,2685.3,0.451532]
[1739735832593,3.72343,2685.7,2685.3,0.451532]
[1739735833640,3.72356,2685.6,2685.3,0.451532]
[1739735833904,3.72356,2685.6,2685.2,6.04964387]
[1739735834265,3.72371,2685.5,2685.2,5.25834387]
[1739735835098,7.4475,2685.5,2685.2,5.25834387]
[1739735835465,3.72371,2685.5,2685.2,5.25834387]
[1739735835798,0.8237,2685.6,2685.2,5.25834387]
[1739735835799,3.72368,2685.6,2685.2,5.25834387]
[1739735835999,3.72368,2685.6,2685.3,0.52583439]
[1739735836383,3.72352,2685.7,2685.3,0.52583439]
[1739735836588,3.72371,2685.5,2685.3,0.52583439]
[1739735838908,0.18824102,2686.2,2684.9,0.7913]
[1739735838909,3.72397,2685.3,2684.9,0.7913]
[1739735839077,0.8237,2685.4,2684.5,0.7913]
[1739735839409,3.72495,2684.6,2684.3,2.95637439]
[1739735839710,3.72495,2684.6,2684.3,0.7913]
[1739735840278,3.72531,2684.4,2684.1,8.87]
[1739735840473,3.72531,2684.4,2684.0,0.98507588]
[1739735840474,3.72543,2684.3,2684.0,0.98507588]
[1739735840669,3.76676558,2684.3,2684.0,0.98507588]
[1739735840883,0.04129558,2684.3,2684.0,3.98507588]
[1739735841087,0.04129558,2684.3,2684.1,0.77109459]
[1739735841514,0.04129558,2684.3,2684.1,0.80834668]
[1739735842575,0.04129558,2684.3,2684.2,4.2755]
[1739735842766,3.72475,2684.8,2684.2,3.76278373]
[1739735842972,3.72496,2684.6,2684.1,3.77109459]
[1739735843219,3.72496,2684.6,2684.2,0.84818705]
[1739735843520,0.04096576,2684.5,2684.2,0.84818705]
[1739735844900,0.04096576,2684.5,2684.3,0.03724835]
[1739735845104,0.04096576,2684.5,2684.2,4.57366705]
[1739735845305,3.72481,2684.7,2684.2,9.83201092]
[1739735845492,0.04093935,2684.4,2684.2,6.10653092]
[1739735845693,3.72495,2684.6,2684.2,6.10653092]
[1739735846010,3.72495,2684.6,2684.2,9.65653092]
[1739735846198,0.04096576,2684.5,2684.2,9.65653092]
[1739735847512,0.04096576,2684.5,2684.3,0.47366241]
[1739735848006,3.72522,2684.4,2684.2,9.10653092]
[1739735848176,3.72536,2684.3,2684.2,5.25834387]
[1739735848376,3.76616778,2684.3,2684.2,5.25834387]
[1739735851301,3.76616778,2684.3,2684.0,0.19377588]
[1739735852378,0.04080778,2684.3,2684.0,0.19377588]
[1739735852584,0.04080778,2684.3,2684.0,3.19377588]
[1739735852805,0.04080778,2684.3,2684.0,4.45673639]
[1739735853217,0.04080778,2684.3,2684.0,4.49398979]
[1739735853542,0.04080778,2684.3,2684.0,4.45673639]
[1739735853883,3.76624778,2684.3,2684.0,1.45673639]
[1739735854211,0.04078136,2684.2,2684.0,0.19377588]
[1739735854406,3.72544,2684.3,2684.0,0.19377588]
[1739735854626,0.04073809,2684.1,2684.0,0.19377588]
[1739735854791,3.72544,2684.3,2684.0,0.19377588]
[1739735854989,0.04073809,2684.1,2684.0,0.19377588]
[1739735855189,3.72544,2684.3,2684.0,0.19377588]
[1739735855421,0.04073809,2684.1,2684.0,0.19377588]
[1739735855620,3.72544,2684.3,2684.0,1.41159286]
[1739735855806,0.04073809,2684.1,2684.0,1.41159286]
[1739735856158,8.24753,2684.4,2684.0,1.41159286]
[1739735856420,0.04060064,2684.3,2684.0,1.41159286]
[1739735858024,3.76597064,2684.3,2684.0,1.41159286]
[1739735859801,0.04060064,2684.3,2684.0,1.41159286]
[1739735861234,0.04060064,2684.3,2684.0,1.21781698]
[1739735861433,3.7255,2684.2,2683.8,8.98439387]
[1739735861598,0.04060064,2684.3,2683.8,8.98430387]
[1739735861799,0.0405478,2684.1,2683.8,12.71028387]
[1739735862120,0.04052138,2684.0,2683.8,8.98430387]
[1739735862434,3.72537,2684.3,2683.9,0.98139039]
[1739735866243,3.72537,2684.3,2683.9,4.70730039]
[1739735866602,0.7969,2684.4,2683.9,4.70730039]
[1739735866807,4.52212,2684.4,2683.9,4.70730039]
[1739735867542,8.24744,2684.4,2683.9,4.70730039]
[1739735868437,4.52212,2684.4,2683.9,4.70730039]
[1739735868646,8.24743,2684.4,2683.9,4.70730039]
[1739735869102,4.51953,2684.8,2684.2,3.7255]
[1739735869306,4.51953,2684.8,2684.2,3.72542]
[1739735869529,3.72491,2684.7,2684.2,3.72542]
[1739735870308,3.72491,2684.7,2684.2,7.45079]
[1739735870509,0.04067988,2684.6,2684.2,3.72538]
[1739735870802,0.04067988,2684.6,2684.2,4.58452206]
[1739735871545,3.76566988,2684.6,2684.2,0.85914206]
[1739735871742,3.76566988,2684.6,2684.1,4.27563]
[1739735872545,0.04067988,2684.6,2684.2,3.7255]
[1739735875052,0.04067988,2684.6,2684.2,8.98384387]
[1739735876559,0.04067988,2684.6,2684.3,3.72531]
[1739735876765,0.04067988,2684.6,2684.4,3.72522]
[1739735876972,0.7948,2684.8,2684.5,0.74877789]
[1739735877174,0.7948,2684.8,2684.4,4.53932]
[1739735880559,0.7948,2684.8,2684.5,3.72499]
[1739735881258,0.7948,2684.8,2684.4,0.8141]
[1739735881259,0.7948,2684.8,2684.4,4.53925]
[1739735881834,4.51955,2684.8,2684.3,6.72529]
[1739735882043,4.51955,2684.8,2684.3,10.45059]
[1739735883266,3.72487,2684.7,2684.3,3.0]
[1739735883425,0.7606,2684.5,2684.2,5.25834387]
[1739735885359,0.03919406,2684.4,2684.2,5.25834387]
[1739735885861,3.76442406,2684.4,2684.2,5.25834387]
[1739735886549,0.03919406,2684.4,2684.2,5.25834387]
[1739735886760,0.03919406,2684.4,2684.3,4.27536]
[1739735886941,4.48513,2684.9,2684.3,5.68641567]
[1739735887257,4.48513,2684.9,2684.4,3.72517]
[1739735887459,0.0392155,2684.8,2684.4,3.72517]
[1739735887657,0.0392155,2684.8,2684.5,3.72502]
[1739735887958,0.0392155,2684.8,2684.5,3.72503]
[1739735888265,0.0392155,2684.8,2684.5,4.29363857]
[1739735888627,0.0392155,2684.8,2684.6,4.27482]
[1739735888827,0.0392155,2684.8,2684.6,0.55]
[1739735889028,4.52835,2685.1,2684.6,4.27494]
[1739735889265,4.52835,2685.1,2684.6,9.53328387]
[1739735889440,0.03926831,2685.0,2684.6,9.53328387]
[1739735889761,0.03926831,2685.0,2684.6,10.91597611]
[1739735890478,0.03926831,2685.0,2684.6,7.19103611]
[1739735890979,3.76368831,2685.0,2684.6,7.19103611]
[1739735891181,3.76368831,2685.0,2684.6,5.80834387]
[1739735891864,0.03926831,2685.0,2684.6,9.53328387]
[1739735892372,3.76366831,2685.0,2684.6,9.53328387]
[1739735893280,0.03926831,2685.0,2684.6,9.53328387]
[1739735893477,3.76366831,2685.0,2684.6,9.53328387]
[1739735893640,3.76366831,2685.0,2684.6,5.80834387]
[1739735898350,0.03926831,2685.0,2684.7,3.72479]
[1739735899660,0.03926831,2685.0,2684.6,10.34839387]
[1739735899863,0.03926831,2685.0,2684.6,10.74954542]
[1739735900185,0.03926831,2685.0,2684.6,7.02469542]
[1739735900351,3.76371831,2685.0,2684.6,7.06194001]
[1739735900775,3.76371831,2685.0,2684.6,10.74958542]
[1739735900976,3.76371831,2685.0,2684.6,10.34843387]
[1739735901285,0.03926831,2685.0,2684.6,10.34843387]
[1739735901874,3.76371831,2685.0,2684.6,6.62354387]
[1739735902884,3.76371831,2685.0,2684.6,5.80834387]
[1739735903098,3.72464,2684.9,2684.6,5.80834387]
[1739735903468,0.03494955,2684.8,2684.6,5.80834387]
[1739735905888,0.7737,2684.7,2684.6,5.80834387]
[1739735906256,0.80862314,2684.7,2684.6,5.80834387]
[1739735906957,0.03492314,2684.7,2684.6,5.80834387]
[1739735907157,0.7737,2684.9,2684.6,10.85913926]
[1739735907371,0.03494955,2684.8,2684.6,9.53328387]
[1739735909320,0.03494955,2684.8,2684.6,13.25816387]
[1739735909590,3.72427,2685.1,2684.6,10.29182387]
[1739735909591,4.49797,2685.1,2684.6,10.29182387]
[1739735909795,0.03507815,2685.0,2684.6,10.29182387]
[1739735909966,3.75953815,2685.0,2684.6,10.29182387]
[1739735910169,3.75953815,2685.0,2684.6,6.56694387]
[1739735910371,3.72454,2684.9,2684.6,5.80834387]
[1739735910579,0.03502534,2684.8,2684.6,5.80834387]
[1739735914311,0.03502534,2684.8,2684.6,9.53325387]
[1739735914515,0.03502534,2684.8,2684.6,10.93494726]
[1739735914675,3.72448,2685.0,2684.6,7.21003726]
[1739735914860,0.03499893,2684.7,2684.6,5.80834387]
[1739735915059,3.72448,2685.0,2684.6,5.80834387]
[1739735915587,0.03505175,2684.9,2684.6,5.80834387]
[1739735916483,0.03505175,2684.9,2684.6,9.53328387]
[1739735919888,0.03507815,2685.0,2684.6,9.53328387]
[1739735920801,3.75949815,2685.0,2684.6,9.53328387]
[1739735921402,3.75949815,2685.0,2684.6,5.80834387]
[1739735925898,0.03507815,2685.0,2684.6,9.53318387]
[1739735926072,0.03507815,2685.0,2684.6,10.56236226]
[1739735926802,0.03507815,2685.0,2684.6,6.83752226]
[1739735927002,3.72461,2684.9,2684.6,5.80834387]
[1739735927203,0.03502113,2684.8,2684.6,5.80834387]
[1739735928220,3.72481,2684.7,2684.6,5.25834387]
[1739735928435,4.57860472,2684.7,2684.6,5.25834387]
[1739735928763,3.72521,2684.5,2684.0,8.98411387]
[1739735928889,3.72497,2684.6,2684.1,3.72557]
[1739735929088,0.03485345,2684.5,2684.1,3.76282202]
[1739735929384,0.03485345,2684.5,2684.1,3.72557]
[1739735929702,0.03485345,2684.5,2684.3,0.55]
[1739735929913,0.5688,2684.7,2684.3,2.10878077]
[1739735930084,0.03485345,2684.5,2684.3,5.83413077]
[1739735930424,0.5688,2684.7,2684.3,5.23130508]
[1739735932013,4.29367,2684.7,2684.3,1.50595508]
[1739735932928,4.29367,2684.7,2684.3,0.55]
[1739735934424,4.29367,2684.7,2684.3,5.80834387]
[1739735935228,0.5688,2684.7,2684.3,5.80834387]
[1739735935434,0.5688,2684.7,2684.3,9.53369387]
[1739735936130,3.72449,2685.0,2684.4,4.51621]
[1739735936431,3.75946645,2684.9,2684.4,4.51614]
[1739735936732,3.75946645,2684.9,2684.4,5.9583788]
[1739735937513,3.75946645,2684.9,2684.4,5.95837881]
[1739735937899,3.75946645,2684.9,2684.4,5.92113039]
[1739735938133,3.75946645,2684.9,2684.4,5.95837871]
[1739735938633,0.03486645,2684.9,2684.5,0.55]
[1739735938853,0.7985,2685.0,2684.6,4.00320387]
[1739735938854,3.72439,2685.0,2684.6,4.00320387]
[1739735939160,3.72426,2685.1,2684.6,4.00320387]
[1739735939457,0.03497288,2685.0,2684.6,4.00320387]
[1739735939818,0.03497288,2685.0,2684.6,0.27832387]
[1739735940064,0.03497288,2685.0,2684.7,4.18010739]
[1739735942154,3.72426,2685.1,2684.7,4.18010739]
[1739735942357,0.7985,2685.2,2684.7,4.18010739]
[1739735942651,4.52273,2685.2,2684.8,0.791]
[1739735944256,3.72441,2685.0,2684.8,0.791]
[1739735944556,3.72441,2685.0,2684.7,0.55]
[1739735944927,3.72439,2685.1,2684.7,1.61026577]
[1739735945258,3.72446,2685.0,2684.7,1.61026577]
[1739735946026,3.72446,2685.0,2684.7,0.55]
[1739735947462,3.72481,2684.7,2684.6,5.25834387]
[1739735947662,3.72481,2684.7,2684.3,12.59524]
[1739735947663,3.72481,2684.7,2684.4,5.25834387]
[1739735948863,4.52317,2684.8,2684.4,5.25834387]
[1739735949067,0.7985,2685.0,2684.5,4.51601]
[1739735949290,3.72453,2684.9,2684.5,5.86597239]
[1739735949996,3.72453,2684.9,2684.5,2.14096239]
[1739735950156,3.72467,2684.8,2684.5,2.14096239]
[1739735950477,3.72453,2684.9,2684.5,5.86599239]
[1739735950786,7.44919,2684.9,2684.5,2.14096239]
[1739735951089,3.72467,2684.8,2684.5,2.14096239]
[1739735951384,7.44916,2684.9,2684.5,2.14096239]
[1739735951588,3.72453,2684.9,2684.5,2.14096239]
[1739735952086,3.72468,2684.8,2684.5,2.14096239]
[1739735954602,3.72468,2684.8,2684.5,0.791]
[1739735961435,4.52297,2685.0,2684.5,4.51605]
[1739735961637,8.24746,2685.0,2684.5,4.51605]
[1739735962434,4.52297,2685.0,2684.5,0.791]
[1739735962640,3.72432,2685.1,2684.6,0.58724781]
[1739735962936,3.72432,2685.1,2684.6,5.46698628]
[1739735964942,3.72432,2685.1,2684.7,3.72478]
[1739735965131,3.72418,2685.2,2684.7,4.47683]
[1739735966310,8.21169,2685.3,2684.8,3.72462]
[1739735966510,3.72411,2685.2,2684.8,4.87859012]
[1739735967045,4.48748,2685.3,2684.8,4.87859012]
[1739735967249,3.72412,2685.2,2684.8,4.87859012]
[1739735968769,3.72412,2685.2,2684.8,1.15397012]
[1739735974073,3.72426,2685.1,2684.8,1.15397012]
[1739735979511,3.72413,2685.2,2684.8,1.15397012]
[1739735979711,3.72413,2685.2,2684.8,4.87859012]
[1739735980075,3.72413,2685.2,2684.8,1.15397012]
[1739735980378,3.72413,2685.2,2684.7,9.73514387]
[1739735982182,7.44834,2685.2,2684.7,9.73514387]
[1739735982376,3.72413,2685.2,2684.7,6.01044387]
[1739735982576,3.72431,2685.1,2684.7,6.01044387]
[1739735983308,3.72431,2685.1,2684.7,9.73524387]
[1739735984513,3.72431,2685.1,2684.7,11.25547388]
[1739735986818,3.72431,2685.1,2684.7,7.53067388]
[1739735987129,3.72431,2685.1,2684.7,6.01044387]
[1739735998519,3.72425,2685.1,2684.7,6.01044387]
[1739735999138,3.72467,2684.8,2684.7,5.25834387]
[1739735999634,3.72526,2684.4,2684.2,0.8095]
[1739736000312,3.72551,2684.2,2683.9,0.8095]
[1739736000631,3.72551,2684.2,2684.0,0.55]
[1739736001833,3.72536,2684.3,2684.0,0.55]
[1739736002238,3.72536,2684.3,2683.9,0.8095]
[1739736002417,3.72551,2684.2,2683.9,0.8095]
[1739736004940,3.7253,2684.4,2683.9,0.8095]
[1739736005146,3.7254,2684.3,2683.9,0.8095]
[1739736005780,3.7253,2684.4,2683.9,0.8095]
[1739736005981,3.72567,2684.1,2683.8,0.55]
[1739736006268,4.55227,2684.0,2683.7,5.25834387]
[1739736006554,0.8264,2684.0,2683.7,5.25834387]
[1739736006884,4.55227,2684.0,2683.7,5.25834387]
[1739736007175,4.55227,2684.0,2683.2,3.72679]
[1739736007176,3.72628,2683.7,2683.3,5.25834387]
[1739736007378,3.72636,2683.6,2683.3,5.25834387]
[1739736008523,3.77294,2683.6,2683.3,5.25834387]
[1739736008726,3.72661,2683.4,2683.3,5.25834387]
[1739736009232,3.72636,2683.6,2683.3,5.25834387]
[1739736009579,3.72652,2683.5,2683.3,5.25834387]
[1739736009777,0.8264,2683.7,2683.3,5.25834387]
[1739736009982,3.7261,2683.8,2683.4,0.7709]
[1739736010289,3.72639,2683.6,2683.3,5.25834387]
[1739736011335,3.72633,2683.7,2683.3,5.25834387]
[1739736011739,0.18563723,2683.8,2683.4,3.72657]
[1739736012590,3.72626,2683.7,2683.3,5.25834387]
[1739736013270,3.72661,2683.4,2683.3,5.25834387]
[1739736014178,3.72661,2683.4,2683.0,0.7709]
[1739736015172,0.7888,2683.3,2682.9,5.80834387]
[1739736015375,4.51563,2683.3,2682.9,5.80834387]
[1739736015877,3.72693,2683.2,2682.8,4.49826]
[1739736016071,3.72693,2683.2,2682.8,0.7709]
[1739736016773,4.51563,2683.3,2682.8,4.49833]
[1739736016974,4.51563,2683.3,2682.9,0.55]
[1739736017176,3.72657,2683.5,2682.9,4.2773]
[1739736017177,3.72671,2683.4,2682.9,4.2773]
[1739736017766,0.7888,2683.5,2683.1,3.72691]
[1739736017973,3.72646,2683.6,2683.2,0.7709]
[1739736018302,4.51508,2683.7,2683.3,3.72675]
[1739736018521,3.91177723,2683.8,2683.3,3.72675]
[1739736018791,3.91170723,2683.8,2683.3,3.72675]
[1739736019095,0.18563723,2683.8,2683.2,4.49778]
[1739736019292,0.7888,2684.0,2683.5,3.72635]
[1739736019293,4.51462,2684.0,2683.5,3.72635]
[1739736019464,4.51458,2684.0,2683.6,0.7709]
[1739736019658,3.72592,2683.9,2683.6,0.7709]
[1739736020054,3.72578,2684.0,2683.6,0.7709]
[1739736020259,7.45169,2684.0,2683.6,0.7709]
[1739736020566,3.72592,2683.9,2683.6,0.7709]
[1739736021192,3.72557,2684.2,2683.6,4.946889]
[1739736021396,3.72557,2684.2,2683.7,3.72614]
[1739736022172,0.97805111,2684.5,2683.6,1.220629]
[1739736022377,0.97805111,2684.5,2684.0,0.7709]
[1739736022576,3.72529,2684.4,2684.0,0.7709]
[1739736022995,0.97805111,2684.5,2684.0,4.4966]
[1739736023294,3.91435111,2684.5,2684.0,1.593151]
[1739736023499,3.91435111,2684.5,2684.0,0.7709]
[1739736024108,3.77187885,2684.4,2684.0,0.7709]
[1739736024287,3.7255,2684.2,2683.6,9.78126387]
[1739736024497,8.28198,2684.3,2683.7,3.7261]
[1739736024809,3.72571,2684.1,2683.7,0.55]
[1739736025400,3.72571,2684.1,2683.7,1.95574639]
[1739736025666,3.72593,2683.9,2683.6,5.25834387]
[1739736025860,3.72593,2683.9,2683.4,4.52316]
[1739736026084,3.72614,2683.8,2683.4,0.55]
[1739736026412,3.72614,2683.8,2683.2,7.973198]
[1739736026568,3.72614,2683.8,2683.3,3.72674]
[1739736026770,4.55703,2683.9,2683.4,3.72659]
[1739736027101,0.8311,2684.1,2683.7,0.55]
[1739736027675,0.8311,2684.1,2683.8,3.72598]
[1739736027876,0.8311,2684.1,2683.7,0.55]
[1739736028499,0.8311,2684.1,2683.8,3.72603]
[1739736028664,4.55656,2684.3,2683.8,3.72603]
[1739736028867,3.72558,2684.2,2683.7,0.55]
[1739736029311,3.72558,2684.2,2683.7,4.27616]
[1739736029604,4.55656,2684.3,2683.8,3.726]
[1739736029807,3.72553,2684.2,2683.7,4.27619]
[1739736030183,0.8311,2684.3,2683.7,4.27619]
[1739736030383,4.55648,2684.3,2683.8,3.72598]
[1739736031105,3.72554,2684.2,2683.7,4.27619]
[1739736031671,4.55648,2684.3,2683.8,3.72599]
[1739736031870,8.28192,2684.3,2683.8,3.72599]
[1739736032090,4.55648,2684.3,2683.8,3.72599]
[1739736032303,0.18925111,2684.5,2684.1,3.72564]
[1739736032505,4.55605,2684.6,2684.1,3.72564]
[1739736032707,3.72517,2684.5,2684.0,4.52237]
[1739736033411,4.55605,2684.6,2684.0,0.7966]
[1739736033609,4.55605,2684.6,2684.1,3.72564]
[1739736033905,3.72519,2684.5,2684.0,0.7966]
[1739736034210,4.55672,2684.2,2683.7,9.78103387]
[1739736034608,0.8311,2684.2,2683.7,6.05494387]
[1739736034813,0.8311,2684.2,2683.7,5.25834387]
[1739736034814,3.72606,2683.8,2683.7,5.25834387]
[1739736035017,4.55716,2683.8,2683.4,5.25834387]
[1739736035387,4.60373885,2683.8,2683.4,5.25834387]
[1739736035712,3.72647,2683.5,2683.1,0.7966]
[1739736036211,7.4525,2683.7,2683.1,4.52356]
[1739736036397,3.72619,2683.7,2683.2,3.72688]
[1739736037174,3.72646,2683.6,2683.1,4.52356]
[1739736037973,7.45288,2683.6,2683.1,4.52356]
[1739736038511,0.8311,2683.4,2683.1,0.55]
[1739736039579,0.8311,2683.4,2683.1,4.277]
[1739736040178,0.8311,2683.4,2683.1,0.55]
[1739736040393,0.8311,2683.4,2683.0,3.0]
[1739736040729,8.28449,2683.4,2683.0,3.0]
[1739736041028,4.55778,2683.4,2683.0,3.0]
[1739736041227,3.72642,2683.6,2683.1,3.72694]
[1739736041428,0.7661,2683.6,2683.2,0.55]
[1739736041608,0.7661,2683.6,2683.3,3.72673]
[1739736041998,0.7661,2683.6,2683.2,0.55]
[1739736042193,0.7661,2683.6,2683.2,4.27687]
[1739736042428,0.7661,2683.6,2683.3,3.72667]
[1739736043127,0.95546611,2683.9,2683.4,4.53409]
[1739736043332,0.7661,2683.9,2683.6,3.72623]
[1739736043742,4.49178,2684.1,2683.6,3.72623]
[1739736044069,0.7661,2684.1,2683.6,3.72623]
[1739736044222,4.49175,2684.1,2683.6,3.72623]
[1739736044595,0.7661,2684.1,2683.8,3.72603]
[1739736044795,3.72535,2684.4,2683.8,4.526206]
[1739736045019,7.45067,2684.4,2683.8,4.53347]
[1739736045199,7.45064,2684.4,2683.9,3.72589]
[1739736045401,3.72557,2684.2,2683.8,0.8075]
[1739736045620,3.72565,2684.1,2683.7,0.55]
[1739736045820,3.72606,2683.8,2683.5,3.0]
[1739736046030,3.72606,2683.8,2683.3,4.53417]
[1739736046246,3.72606,2683.8,2683.4,0.55]
[1739736046594,3.72634,2683.6,2683.2,8.98512387]
[1739736046836,4.49244,2683.6,2683.2,5.25834387]
[1739736047412,4.49244,2683.6,2683.1,4.53451]
[1739736048443,3.72623,2683.7,2683.2,3.72678]
[1739736048960,0.7661,2683.8,2683.3,4.2767]
[1739736049109,0.7661,2683.8,2683.4,4.15423]
[1739736049306,4.49218,2683.8,2683.4,0.42767]
[1739736049530,4.49218,2683.8,2683.3,4.27674]
[1739736050057,3.72628,2683.7,2683.3,0.55]
[1739736050542,4.49218,2683.8,2683.3,4.27672]
[1739736050707,4.49218,2683.8,2683.3,8.00344]
[1739736051042,0.7661,2683.8,2683.5,3.72638]
[1739736051242,0.7661,2683.8,2683.3,4.2767]
[1739736051444,0.7661,2683.8,2683.3,4.78507]
[1739736051741,0.7661,2683.8,2683.4,3.72648]
[1739736052309,0.7661,2683.8,2683.5,0.55]
[1739736052507,0.7661,2684.1,2683.5,1.3575]
[1739736052714,3.72579,2684.0,2683.6,3.72622]
[1739736053939,0.7661,2684.1,2683.6,3.72622]
[1739736054514,0.7661,2684.1,2683.5,5.08394]
[1739736055046,4.49181,2684.1,2683.6,3.72624]
[1739736055441,4.49175,2684.1,2683.6,3.72633]
[1739736056746,4.49175,2684.1,2683.6,3.72622]
[1739736056747,0.7661,2684.1,2683.6,3.72622]
[1739736056912,4.49177,2684.1,2683.6,3.72622]
[1739736057750,3.72578,2684.0,2683.6,3.72622]
[1739736058323,0.7661,2684.1,2683.9,3.72581]
[1739736058531,3.72533,2684.4,2683.9,3.72581]
[1739736058741,3.72546,2684.3,2683.7,4.27607]
[1739736058940,3.72546,2684.3,2683.8,3.72601]
[1739736059723,3.72539,2684.3,2683.8,3.72604]
[1739736059925,3.72166332,2684.3,2683.9,3.7259]
[1739736060253,3.72166332,2684.3,2683.8,3.72604]
[1739736060449,3.72567,2684.1,2683.7,0.55]
[1739736060651,4.6020434,2684.1,2683.7,0.55]
[1739736060952,0.8298,2684.1,2683.7,5.31034839]
[1739736061250,0.8298,2684.1,2683.8,3.72598]
[1739736061429,0.8298,2684.1,2683.7,1.58420839]
[1739736061631,0.8298,2684.1,2683.7,5.31027839]
[1739736062423,0.8298,2684.3,2683.8,3.72597]
[1739736062623,0.8298,2684.3,2683.7,5.31038839]
[1739736062956,3.72557,2684.2,2683.7,5.31038839]
[1739736066753,7.45117,2684.2,2683.7,5.31038839]
[1739736067057,3.72557,2684.2,2683.7,5.31038839]
[1739736069723,3.62684174,2684.2,2683.7,5.31038839]
[1739736070666,7.35242174,2684.2,2683.7,5.31038839]
[1739736071189,0.8298,2684.3,2683.7,0.55]
[1739736071482,0.8298,2684.3,2684.0,7.4514]
[1739736071830,1.01102763,2684.6,2684.2,3.7255]
[1739736072035,0.8227,2684.6,2684.2,3.7255]
[1739736072235,3.72469,2684.8,2684.4,3.72522]
[1739736072458,0.8227,2684.8,2684.5,3.72497]
[1739736072967,0.8227,2684.8,2684.6,3.72484]
[1739736073168,0.8227,2685.0,2684.6,3.72484]
[1739736073387,0.8227,2685.0,2684.7,3.72474]
[1739736073566,0.8227,2685.0,2684.6,7.4497]
[1739736073762,0.8227,2685.0,2684.6,4.46981]
[1739736074107,4.54675,2685.3,2684.7,4.27479]
[1739736074252,0.8227,2685.3,2684.9,3.72452]
[1739736074449,0.8227,2685.3,2684.8,3.72458]
[1739736075166,4.54675,2685.3,2684.8,3.72458]
[1739736075371,0.8227,2685.3,2684.8,3.72458]
[1739736075567,0.8227,2685.3,2684.9,0.95329239]
[1739736075772,0.8227,2685.3,2684.9,4.67781239]
[1739736075977,0.8227,2685.3,2684.9,0.95329239]
[1739736076701,0.8227,2685.3,2685.0,4.27437]
[1739736076863,0.8227,2685.6,2685.2,3.72411]
[1739736077177,0.8227,2685.6,2685.3,0.372411]
[1739736077474,0.8227,2685.6,2685.1,0.7592]
[1739736078295,4.54627,2685.6,2685.1,0.7592]
[1739736079099,0.8227,2685.6,2685.1,0.7592]
[1739736079308,0.8227,2685.6,2685.2,3.72409]
[1739736079467,4.54626,2685.6,2685.1,0.7592]
[1739736079653,4.54626,2685.6,2685.1,1.35787624]
[1739736080488,3.72373,2685.5,2685.1,1.35787624]
[1739736080692,3.72373,2685.5,2685.1,0.59867624]
[1739736081629,0.7841,2685.2,2684.6,9.6347]
[1739736081794,3.72435,2685.1,2684.5,3.72498]
[1739736082097,7.44873,2685.1,2684.4,6.02304387]
[1739736082398,3.7244,2685.0,2684.6,0.55]
[1739736082956,0.04655867,2685.1,2684.4,6.02304387]
[1739736083161,7.44956,2684.8,2684.4,5.25834387]
[1739736084084,3.72476,2684.8,2684.4,5.25834387]
[1739736085068,3.72502,2684.6,2684.4,5.25834387]
[1739736085293,0.7691,2684.5,2684.4,5.25834387]
[1739736085675,4.49418,2684.5,2684.4,5.25834387]
[1739736085876,0.7691,2684.5,2684.4,5.25834387]
[1739736086081,4.49418,2684.5,2684.4,5.25834387]
[1739736086598,0.7691,2684.5,2684.4,5.25834387]
[1739736087372,0.7691,2684.9,2684.4,8.98349387]
[1739736087791,4.49365,2684.9,2684.4,5.25834387]
[1739736088097,3.72467,2684.8,2684.4,5.25834387]
[1739736088703,0.81566464,2684.9,2684.4,5.25834387]
[1739736088872,3.72508,2684.5,2684.4,5.25834387]
[1739736089205,3.72502,2684.6,2684.2,0.55]
[1739736090211,7.45067,2684.4,2684.1,5.25834387]
[1739736090404,3.72532,2684.4,2684.1,5.25834387]
[1739736090591,4.49419,2684.5,2684.1,5.25834387]
[1739736092105,3.72523,2684.4,2684.1,5.25834387]
[1739736092312,0.7691,2684.5,2683.8,0.55]
[1739736092478,3.72548,2684.3,2683.8,0.55]
[1739736092679,0.04657273,2684.2,2683.8,5.68410539]
[1739736092896,3.72548,2684.3,2683.8,5.68410539]
[1739736093991,0.04657222,2684.2,2683.8,1.95809539]
[1739736094190,3.77219222,2684.2,2683.8,0.55]
[1739736095373,3.77219222,2684.2,2683.7,9.80476387]
[1739736095578,3.72562,2684.2,2683.7,9.80476387]
[1739736096077,3.72533,2684.4,2683.8,3.72605]
[1739736096490,3.72537,2684.3,2683.8,3.72605]
[1739736096689,7.45081,2684.3,2683.8,3.72605]
[1739736096904,3.72537,2684.3,2683.8,3.72605]
[1739736097112,7.45081,2684.3,2683.8,3.72605]
[1739736097416,3.72537,2684.3,2683.8,3.72606]
[1739736099219,3.7255,2684.2,2683.8,3.72606]
[1739736100220,3.72537,2684.3,2683.7,9.80479387]
[1739736100381,3.72558,2684.2,2683.7,9.80479387]
[1739736101419,3.72564,2684.1,2683.7,9.80479387]
[1739736101595,3.7255,2684.2,2683.7,9.80479387]
[1739736102725,3.7255,2684.2,2683.7,11.53232324]
[1739736103185,3.7255,2684.2,2683.8,3.72604]
[1739736104627,3.72541,2684.3,2683.8,3.72597]
[1739736105329,0.7691,2684.5,2683.7,7.80617324]
[1739736105508,3.72559,2684.2,2683.7,11.53229324]
[1739736105915,0.04657386,2684.1,2683.7,11.53229324]
[1739736106390,3.72559,2684.2,2683.7,11.53229324]
[1739736106720,3.72559,2684.2,2683.7,9.80476387]
[1739736107124,0.04657386,2684.1,2683.7,9.80476387]
[1739736107636,0.04657386,2684.1,2683.7,5.25834387]
[1739736107807,3.726,2683.9,2683.4,5.25834387]